bitfinex-derivatives/quotes_SOLF0:USTF0_20250816
["timestamp","ask_amount","ask_price","bid_price","bid_amount"]
[1755333021553,2.87,188.01,187.96,3.06]
[1755333023252,2.844408,188.07,187.95,3.09]
[1755333023451,2.87,188.03,187.95,3.09]
[1755333023853,2.87,188.03,187.91,2.844408]
[1755333024042,4.22759685,188.02,187.92,3.09]
[1755333024248,2.87,188.01,187.92,3.09]
[1755333025449,2.87,188.01,187.94,3.09]
[1755333030552,2.87,188.01,187.89,2.844408]
[1755333030758,2.87,187.99,187.9,3.09]
[1755333032758,2.87,187.97,187.9,3.09]
[1755333034154,4.22079174,187.96,187.9,3.09]
[1755333034355,2.87,187.95,187.9,3.09]
[1755333034555,4.3586106,188.0,187.9,3.09]
[1755333034756,2.87,187.93,187.9,3.09]
[1755333035260,2.87,187.97,187.9,5.934408]
[1755333035559,2.87,187.97,187.91,3.09]
[1755333036259,2.87,187.95,187.91,3.09]
[1755333036456,2.87,188.0,187.91,3.09]
[1755333036759,2.87,187.98,187.91,3.09]
[1755333037059,2.87,187.96,187.91,3.09]
[1755333037753,4.39935321,187.95,187.91,3.09]
[1755333037957,2.87,187.95,187.91,3.09]
[1755333038658,4.3586106,188.01,187.91,3.09]
[1755333038659,2.87,187.97,187.91,3.09]
[1755333038859,8.61776837,187.96,187.91,3.09]
[1755333039060,4.39948302,187.95,187.91,3.09]
[1755333039257,2.87,187.95,187.91,3.09]
[1755333039462,1.52984289,187.94,187.91,3.09]
[1755333039660,2.87,187.95,187.91,3.09]
[1755333039859,1.52984289,187.94,187.91,3.09]
[1755333040162,2.87,187.99,187.91,3.09]
[1755333040362,2.87,187.97,187.91,3.09]
[1755333040559,8.62118622,187.96,187.91,3.09]
[1755333040758,1.53039595,187.95,187.91,3.09]
[1755333040964,1.53039595,187.94,187.91,3.09]
[1755333041164,2.87,187.95,187.91,3.09]
[1755333041360,1.53035222,187.94,187.91,3.09]
[1755333041566,2.87,187.95,187.91,3.09]
[1755333041767,1.53029539,187.94,187.91,3.09]
[1755333041965,2.87,187.99,187.91,3.09]
[1755333042166,2.87,187.97,187.91,3.09]
[1755333042366,2.87,187.95,187.91,3.09]
[1755333042667,1.53029539,187.94,187.91,3.09]
[1755333042964,2.87,187.95,187.91,3.09]
[1755333043156,1.53058425,187.94,187.91,3.09]
[1755333043355,2.87,187.95,187.91,3.09]
[1755333043562,1.53085385,187.94,187.91,3.09]
[1755333043764,2.87,187.99,187.94,3.09]
[1755333043965,1.53145863,187.98,187.94,3.09]
[1755333044166,1.53145863,187.97,187.94,3.09]
[1755333044366,4.3586106,188.03,187.93,2.844408]
[1755333044367,4.3586106,188.03,187.96,3.09]
[1755333044561,10.68811032,188.02,187.96,3.09]
[1755333044762,2.87,188.0,187.96,3.09]
[1755333044962,2.87,188.0,187.95,5.3166]
[1755333044963,2.87,187.98,187.97,3.09]
[1755333045868,2.87,187.98,187.95,3.09]
[1755333046064,2.87,187.97,187.96,3.09]
[1755333046463,4.3586106,188.03,187.96,3.09]
[1755333046664,2.87,188.01,187.93,2.844408]
[1755333046863,7.09583374,188.0,187.94,3.09]
[1755333047061,4.22583374,187.99,187.94,3.09]
[1755333047264,2.87,187.99,187.96,5.3161]
[1755333047465,2.87,187.99,187.97,3.09]
[1755333047964,2.87,187.99,187.98,3.09]
[1755333048261,7.09937548,187.99,187.98,3.09]
[1755333050261,7.09937548,187.99,187.96,3.07]
[1755333050465,2.87,187.99,187.96,3.07]
[1755333050866,4.3586106,188.03,187.96,3.07]
[1755333051073,2.88,188.0,187.96,3.07]
[1755333051273,4.3586106,188.04,187.97,3.07]
[1755333051567,4.23842271,188.03,188.0,3.07]
[1755333051768,7.2386106,188.1,188.03,3.07]
[1755333052071,2.88,188.08,188.03,3.07]
[1755333052372,4.3586106,188.1,188.04,3.07]
[1755333052373,2.88,188.06,188.04,3.07]
[1755333052673,2.88,188.06,188.05,3.07]
[1755333053368,7.09958819,188.06,188.05,3.07]
[1755333054968,4.21958819,188.06,188.03,3.07]
[1755333055168,2.88,188.04,188.03,3.07]
[1755333056072,2.88,188.03,187.91,2.844408]
[1755333056266,2.88,188.01,187.92,3.07]
[1755333056472,2.88,187.99,187.92,8.3874]
[1755333056764,7.10612252,187.98,187.93,3.07]
[1755333056972,2.88,187.97,187.93,3.07]
[1755333058772,2.88,188.01,187.93,8.3872]
[1755333058972,4.23261247,188.0,187.94,3.07]
[1755333059170,2.88,187.98,187.94,3.07]
[1755333059571,2.88,187.97,187.94,3.07]
[1755333060070,2.88,187.96,187.95,3.07]
[1755333060369,4.3970936,188.01,187.95,3.07]
[1755333060576,2.88,187.99,187.95,3.07]
[1755333060771,4.23619707,187.98,187.95,3.07]
[1755333061077,2.88,188.01,187.95,3.07]
[1755333061273,4.23198719,188.0,187.98,3.07]
[1755333061474,4.23198719,187.99,187.98,3.07]
[1755333061672,4.23198719,187.99,187.96,3.07]
[1755333061673,2.88,187.98,187.96,3.07]
[1755333061871,2.88,187.96,187.93,3.07]
[1755333062175,2.88,187.94,187.93,3.07]
[1755333062867,4.3970936,188.0,187.91,2.844408]
[1755333063064,2.88,187.95,187.94,3.07]
[1755333064176,4.3970936,188.0,187.94,3.07]
[1755333064369,2.88,187.98,187.94,3.07]
[1755333064569,2.88,187.97,187.94,3.07]
[1755333064766,2.88,187.97,187.94,5.3169]
[1755333064969,2.88,187.97,187.96,3.07]
[1755333067271,2.88,187.97,187.91,2.844408]
[1755333067472,2.88,187.96,187.95,3.07]
[1755333067868,2.88,188.03,187.95,3.07]
[1755333068072,2.88,188.01,187.95,3.07]
[1755333068271,2.88,187.99,187.94,5.3167]
[1755333068476,2.88,188.04,187.95,3.07]
[1755333068679,2.88,188.02,187.95,3.07]
[1755333068877,4.23316718,188.01,187.95,3.07]
[1755333069078,2.88,188.0,187.95,3.07]
[1755333069876,2.88,188.0,187.97,3.07]
[1755333070878,2.88,188.04,187.98,3.07]
[1755333071077,4.23386102,188.03,187.98,3.07]
[1755333071278,4.3970936,188.07,187.98,3.07]
[1755333071479,2.88,188.01,187.98,3.07]
[1755333071678,4.3970936,188.06,187.98,3.07]
[1755333071879,4.23379175,188.05,187.98,3.07]
[1755333072079,2.88,188.03,187.98,3.07]
[1755333072574,2.88,188.09,187.98,3.07]
[1755333072778,2.88,188.07,188.01,3.07]
[1755333073376,2.88,188.07,188.03,3.07]
[1755333073575,2.88,188.07,188.0,2.844408]
[1755333073777,2.88,188.07,188.01,3.07]
[1755333074077,2.88,188.07,188.02,3.07]
[1755333074280,2.88,188.07,188.03,3.07]
[1755333074677,4.23310365,188.06,187.95,5.914408]
[1755333074883,2.88,188.04,187.96,3.07]
[1755333075077,2.88,188.04,187.96,5.3164]
[1755333075282,2.88,188.04,187.97,3.07]
[1755333076080,2.88,188.04,187.99,3.07]
[1755333076281,2.88,188.1,188.0,3.07]
[1755333076478,2.88,188.08,188.0,3.07]
[1755333076684,4.23240725,188.07,188.0,3.07]
[1755333076984,2.88,188.05,187.96,2.844408]
[1755333077185,2.88,188.05,187.96,5.914408]
[1755333077484,2.88,188.05,187.97,3.07]
[1755333079784,2.88,188.05,187.97,8.386]
[1755333079981,2.88,188.05,187.98,3.09]
[1755333080786,2.88,188.05,188.0,3.09]
[1755333081283,3.02,188.04,188.0,3.09]
[1755333081481,3.02,188.11,188.0,3.09]
[1755333081683,3.02,188.09,188.0,3.09]
[1755333081883,3.02,188.07,188.0,3.09]
[1755333086581,4.23399725,188.06,188.0,3.09]
[1755333086884,4.3970936,188.09,188.0,3.09]
[1755333086885,3.02,188.04,188.0,3.09]
[1755333087078,3.02,188.02,188.01,3.09]
[1755333087282,3.02,188.02,187.96,2.844408]
[1755333087482,3.02,188.02,187.98,3.09]
[1755333089591,3.02,188.02,187.99,3.09]
[1755333090286,4.3970936,188.07,187.96,2.844408]
[1755333090488,3.02,188.05,188.0,3.09]
[1755333090692,3.02,188.04,188.0,3.09]
[1755333090888,3.02,188.03,188.0,3.09]
[1755333092882,3.02,188.02,188.0,3.09]
[1755333093093,3.02,188.02,188.01,3.09]
[1755333093292,7.4170936,188.09,187.99,5.934408]
[1755333093490,4.23047841,188.08,187.99,2.844408]
[1755333093791,3.02,188.06,188.0,3.09]
[1755333093991,3.02,188.04,188.01,3.09]
[1755333095195,3.02,188.04,187.99,2.844408]
[1755333095693,3.02,188.04,188.01,3.09]
[1755333096090,3.02,188.04,188.02,3.09]
[1755333097393,3.02,188.03,187.99,2.844408]
[1755333097595,3.02,188.03,188.02,3.09]
[1755333098496,4.3970936,188.09,188.02,3.09]
[1755333098497,3.02,188.05,188.02,3.09]
[1755333098799,3.02,188.04,188.0,3.09]
[1755333098990,3.02,188.08,188.0,3.09]
[1755333099187,4.3970936,188.09,188.0,3.09]
[1755333099188,3.02,188.06,188.0,3.09]
[1755333099388,3.02,188.04,188.0,3.09]
[1755333099589,3.02,188.03,188.0,3.09]
[1755333100292,3.02,188.08,188.0,3.09]
[1755333100494,3.02,188.06,188.0,3.09]
[1755333100691,3.02,188.04,188.0,3.09]
[1755333100895,3.02,188.03,188.0,3.09]
[1755333101094,3.02,188.02,188.0,3.09]
[1755333102001,3.02,188.07,188.0,3.09]
[1755333102202,4.23375037,188.06,188.0,3.09]
[1755333102405,3.02,188.04,188.0,3.09]
[1755333102700,4.3970936,188.09,188.0,8.4052]
[1755333102901,3.02,188.07,188.01,3.09]
[1755333103107,3.02,188.05,188.0,3.09]
[1755333103505,3.02,188.04,188.0,3.09]
[1755333104208,3.02,188.04,188.0,5.3151]
[1755333104412,3.02,188.03,188.01,3.09]
[1755333105309,3.02,188.09,188.01,3.09]
[1755333105608,7.25455769,188.08,188.03,3.09]
[1755333105810,3.02,188.08,188.03,3.09]
[1755333106009,3.02,188.07,188.03,3.09]
[1755333106311,3.02,188.07,188.05,3.09]
[1755333106910,3.02,188.07,188.06,3.09]
[1755333107111,3.02,188.06,188.03,3.09]
[1755333107410,48.41276951,188.15,188.03,3.09]
[1755333107411,3.02,188.11,188.03,3.09]
[1755333107612,3.02,188.09,188.03,3.09]
[1755333107820,4.23445583,188.1,188.03,3.09]
[1755333107821,3.02,188.07,188.03,3.09]
[1755333108111,3.02,188.07,188.03,5.3143]
[1755333108302,3.02,188.07,188.04,3.09]
[1755333109206,3.03,188.06,188.05,2.96]
[1755333112312,3.03,188.08,188.05,2.96]
[1755333112519,3.03,188.07,188.03,5.3143]
[1755333112718,3.03,188.07,188.06,2.96]
[1755333116321,4.3970936,188.13,188.06,2.96]
[1755333116625,330.96,188.25,188.05,2.844408]
[1755333116626,7.26781167,188.12,188.09,2.96]
[1755333116918,3.03,188.13,188.11,5.804408]
[1755333117214,3.03,188.14,188.12,2.96]
[1755333117519,3.03,188.12,188.01,2.96]
[1755333117718,3.03,188.1,188.01,2.96]
[1755333117914,3.03,188.08,188.01,2.96]
[1755333118114,3.03,188.06,188.01,2.96]
[1755333118721,3.03,188.04,188.02,2.96]
[1755333120519,3.03,188.04,187.98,2.96]
[1755333120709,4.37601787,188.03,187.98,2.96]
[1755333120909,3.03,188.01,187.98,2.96]
[1755333121515,3.03,188.07,187.98,2.96]
[1755333121717,3.03,188.05,187.98,2.96]
[1755333121918,3.03,188.03,187.98,2.96]
[1755333122220,3.03,188.02,187.98,2.96]
[1755333122616,3.03,188.01,187.98,2.96]
[1755333123122,4.41502529,188.08,187.98,2.96]
[1755333123321,3.03,188.02,187.98,2.96]
[1755333126323,3.03,188.01,187.98,2.96]
[1755333127622,3.03,188.01,187.98,8.2758]
[1755333127822,3.03,188.01,187.99,2.96]
[1755333129925,3.03,188.06,188.0,2.844408]
[1755333130120,4.39100113,188.05,188.01,2.96]
[1755333130326,3.03,188.07,188.01,2.96]
[1755333130630,3.03,188.04,188.03,2.96]
[1755333136130,4.41502529,188.09,188.03,2.96]
[1755333136330,3.03,188.07,188.04,2.96]
[1755333136530,3.03,188.05,188.04,2.96]
[1755333136731,7.42317291,188.05,188.04,2.96]
[1755333137124,4.39317291,188.05,188.01,5.3149]
[1755333137328,3.03,188.04,188.03,2.96]
[1755333138528,2.93,188.08,188.01,2.84]
[1755333138726,4.39555665,188.07,188.01,2.84]
[1755333138928,2.93,188.05,188.02,2.84]
[1755333139227,2.93,188.05,188.03,2.84]
[1755333139829,2.93,188.08,188.02,2.84]
[1755333140026,2.93,188.06,188.03,2.84]
[1755333140326,2.93,188.04,188.03,2.84]
[1755333140727,2.93,188.03,188.01,2.84]
[1755333140930,2.93,188.02,188.0,2.844408]
[1755333141333,4.41502529,188.08,188.0,8.159608]
[1755333141530,2.93,188.03,188.01,2.84]
[1755333146034,2.93,188.03,187.97,2.844408]
[1755333146239,4.39608884,188.02,188.0,2.844408]
[1755333146435,2.93,188.06,188.01,2.84]
[1755333146631,2.93,188.04,188.02,2.84]
[1755333147040,2.93,188.04,188.0,2.844408]
[1755333147237,2.93,188.02,188.01,2.84]
[1755333152241,7.33010569,188.02,188.01,2.84]
[1755333155546,2.93,188.02,188.01,8.155]
[1755333158348,2.93,188.06,188.03,2.84]
[1755333158548,4.40096932,188.05,188.04,2.84]
[1755333158743,4.40096932,188.05,188.03,5.684408]
[1755333158943,4.40096932,188.04,188.03,5.684408]
[1755333159148,7.33096932,188.04,188.03,5.684408]
[1755333160843,7.33096932,188.04,188.03,2.844408]
[1755333163643,7.33096932,188.04,188.03,5.684408]
[1755333174764,7.33096932,188.04,188.03,4.66324734]
[1755333176560,4.41502529,188.07,188.03,1.82324734]
[1755333176864,4.41502529,188.07,187.93,106.6345]
[1755333176865,7.47502529,188.09,188.06,1.82324734]
[1755333177068,3.06,188.09,188.08,4.70324734]
[1755333177262,4.64422946,188.09,188.08,4.70324734]
[1755333177566,4.64422946,188.09,188.08,1.82324734]
[1755333178461,3.06,188.09,188.08,1.82324734]
[1755333178671,4.5861772,188.09,188.08,1.82324734]
[1755333179162,9.00120249,188.09,188.08,1.82324734]
[1755333179358,3.06,188.08,188.06,1.82324734]
[1755333179563,7.48917443,188.08,188.06,1.82324734]
[1755333179768,3.06,188.07,188.06,1.82324734]
[1755333180669,3.06,188.07,188.06,2.88]
[1755333180869,4.58571149,188.07,188.03,2.84859877]
[1755333181069,4.42917443,188.08,188.05,2.88]
[1755333181070,3.06,188.06,188.05,2.88]
[1755333181472,3.06,188.06,188.03,2.84859877]
[1755333181770,3.06,188.06,188.03,5.72859877]
[1755333181970,3.06,188.06,188.04,2.88]
[1755333186974,4.42917443,188.07,188.04,2.88]
[1755333187173,3.06,188.05,188.03,2.84859877]
[1755333187571,3.06,188.05,188.04,2.88]
[1755333189081,7.42679119,188.05,188.04,2.88]
[1755333206787,7.42679119,188.05,188.03,1.82352903]
[1755333206992,7.25679119,188.04,188.03,1.82352903]
[1755333207591,7.25679119,188.04,188.03,4.77352903]
[1755333212494,7.25679119,188.04,188.03,1.82352903]
[1755333212694,2.89,188.03,187.97,1.82352903]
[1755333212992,2.89,188.01,187.97,1.82352903]
[1755333213197,2.89,187.99,187.97,4.77352903]
[1755333215193,2.89,187.97,187.83,2.95]
[1755333215390,2.89,187.95,187.9,4.77352903]
[1755333215590,2.89,187.93,187.9,4.77352903]
[1755333215899,2.89,187.91,187.9,4.77352903]
[1755333216296,2.89,187.91,187.9,1.82352903]
[1755333216797,7.22958058,187.91,187.87,2.95]
[1755333217004,2.89,187.9,187.88,2.95]
[1755333218195,2.89,187.9,187.84,8.17328197]
[1755333218499,2.89,187.9,187.88,2.95]
[1755333218899,2.89,187.95,187.88,2.95]
[1755333219099,2.89,187.93,187.89,2.95]
[1755333219296,2.89,187.93,187.9,2.95]
[1755333219494,2.89,187.93,187.88,5.80358197]
[1755333219695,2.89,187.93,187.89,2.95]
[1755333221396,2.89,187.92,187.86,2.95]
[1755333222697,2.89,187.92,187.86,8.2692]
[1755333222901,2.89,187.92,187.87,2.95]
[1755333224499,2.89,187.92,187.88,2.95]
[1755333224699,2.85358197,187.97,187.86,2.95]
[1755333224998,2.89,187.95,187.86,2.95]
[1755333225197,2.85358197,187.97,187.86,2.95]
[1755333225198,2.89,187.93,187.86,2.95]
[1755333231099,0.92634493,187.95,187.84,2.94]
[1755333231100,3.03,187.91,187.84,2.94]
[1755333231402,3.03,187.91,187.86,2.85358197]
[1755333231708,3.03,187.91,187.87,2.94]
[1755333232803,3.03,187.97,187.87,2.94]
[1755333233004,4.30475314,187.96,187.87,2.94]
[1755333233198,4.30475314,187.95,187.87,2.94]
[1755333233403,7.33475314,187.94,187.87,2.94]
[1755333233708,3.03,187.94,187.87,2.94]
[1755333235808,3.03,187.92,187.87,2.94]
[1755333238314,3.03,187.92,187.84,2.94]
[1755333239322,4.30270829,187.91,187.84,2.94]
[1755333239523,3.03,187.9,187.84,2.94]
[1755333244318,3.03,187.9,187.85,2.94]
[1755333244809,3.03,187.89,187.85,2.94]
[1755333245618,4.42188364,187.95,187.85,2.94]
[1755333245814,3.03,187.93,187.85,2.94]
[1755333246017,3.03,187.91,187.85,2.94]
[1755333247215,3.03,187.91,187.83,2.85358197]
[1755333247216,3.03,187.91,187.87,2.94]
[1755333248225,4.29827713,187.9,187.87,2.94]
[1755333248422,3.03,187.9,187.87,2.94]
[1755333248923,3.03,187.95,187.87,2.94]
[1755333249119,4.29915961,187.94,187.89,2.85358197]
[1755333249319,3.03,187.98,187.93,2.94]
[1755333249623,3.03,187.96,187.94,2.94]
[1755333250123,3.03,187.95,187.94,2.94]
[1755333250326,3.03,187.98,187.94,2.94]
[1755333250627,4.3027672,187.97,187.94,2.94]
[1755333250819,3.03,187.95,187.94,2.94]
[1755333251624,4.42188364,188.01,187.94,2.94]
[1755333251823,3.03,187.99,187.94,2.94]
[1755333252023,4.3047075,187.98,187.94,2.94]
[1755333252327,4.3047075,187.97,187.94,2.94]
[1755333252626,7.3347075,187.96,187.94,2.94]
[1755333252827,3.03,187.95,187.94,2.94]
[1755333253226,7.3380476,187.95,187.94,2.94]
[1755333254126,3.03,187.95,187.94,2.94]
[1755333254327,7.34119854,187.95,187.94,2.94]
[1755333255129,3.03,187.95,187.94,2.94]
[1755333255626,4.42188364,188.0,187.94,2.94]
[1755333255627,3.03,187.99,187.94,2.94]
[1755333255924,4.31461239,187.98,187.97,2.94]
[1755333256125,4.31461239,187.98,187.97,8.2561]
[1755333256326,4.31461239,187.98,187.97,2.94]
[1755333257426,3.03,187.98,187.97,2.94]
[1755333258230,7.33637902,187.98,187.97,2.94]
[1755333258430,3.03,187.98,187.97,2.94]
[1755333259332,4.42188364,188.03,187.97,2.94]
[1755333259537,3.09,188.0,187.97,2.94]
[1755333259730,4.30524821,187.99,187.98,3.0]
[1755333260432,3.09,188.04,187.98,3.0]
[1755333260635,3.09,188.02,187.99,3.0]
[1755333260831,3.09,188.0,187.99,3.0]
[1755333262826,3.09,188.02,187.99,3.0]
[1755333263030,3.09,188.01,187.99,3.0]
[1755333263534,3.09,188.0,187.99,3.0]
[1755333265834,3.09,188.0,187.95,2.85358197]
[1755333266027,3.09,188.0,187.96,3.0]
[1755333266826,3.09,188.0,187.92,2.85358197]
[1755333267032,3.09,188.0,187.94,3.0]
[1755333270440,3.09,187.98,187.94,3.0]
[1755333270637,3.09,187.98,187.93,3.0]
[1755333273440,3.09,187.98,187.95,3.0]
[1755333273738,3.09,187.98,187.96,3.0]
[1755333274440,3.09,187.98,187.92,8.17108197]
[1755333274640,3.09,187.98,187.94,3.0]
[1755333275335,3.09,187.98,187.92,2.85358197]
[1755333275639,3.09,187.98,187.93,3.0]
[1755333275939,3.09,187.98,187.94,5.317]
[1755333276140,3.09,187.98,187.96,3.0]
[1755333278844,3.09,187.98,187.95,3.0]
[1755333279447,3.09,187.98,187.96,3.0]
[1755333279648,3.09,187.98,187.92,2.85358197]
[1755333279945,3.09,187.98,187.97,3.0]
[1755333283449,3.09,187.98,187.93,3.0]
[1755333286547,4.29998529,187.97,187.9,3.0]
[1755333286752,3.09,187.95,187.9,3.0]
[1755333287050,3.09,187.95,187.91,3.0]
[1755333287446,4.29950068,187.94,187.91,3.0]
[1755333287652,3.09,187.93,187.91,3.0]
[1755333288855,2.94,187.91,187.86,3.1]
[1755333290256,2.94,187.95,187.87,3.1]
[1755333290454,2.94,187.93,187.87,3.1]
[1755333290855,2.94,187.91,187.88,3.1]
[1755333291153,2.94,187.96,187.88,3.1]
[1755333291354,2.94,187.94,187.88,3.1]
[1755333291555,2.94,187.92,187.88,3.1]
[1755333293857,4.42188364,187.96,187.88,8.4188]
[1755333294062,4.3051672,187.95,187.89,3.1]
[1755333294256,2.94,187.93,187.89,3.1]
[1755333294455,4.3051672,187.92,187.89,3.1]
[1755333294651,4.42188364,187.96,187.89,3.1]
[1755333294858,2.94,187.9,187.89,3.1]
[1755333296756,4.42188364,187.97,187.89,3.1]
[1755333296958,7.24549711,187.96,187.89,3.1]
[1755333297153,2.94,187.94,187.89,3.1]
[1755333297355,4.30549711,187.93,187.88,2.85358197]
[1755333297665,2.94,187.91,187.89,3.1]
[1755333300260,4.42188364,187.98,187.89,3.1]
[1755333300463,2.94,187.9,187.89,3.1]
[1755333305368,4.42188364,187.97,187.89,3.1]
[1755333305668,4.30422443,187.96,187.89,3.1]
[1755333305863,4.30422443,187.95,187.89,3.1]
[1755333306168,2.94,187.93,187.89,3.1]
[1755333307062,2.94,187.96,187.88,5.95358197]
[1755333307258,2.94,187.94,187.88,5.95358197]
[1755333307464,2.94,187.92,187.88,2.85358197]
[1755333307663,2.94,187.92,187.9,3.1]
[1755333309364,2.94,187.92,187.88,2.85358197]
[1755333309564,2.94,187.92,187.89,3.1]
[1755333314675,2.94,187.92,187.9,1.82619722]
[1755333314972,2.94,187.92,187.91,3.1]
[1755333315174,7.25016948,187.92,187.91,3.1]
[1755333319977,3.0,187.97,187.91,3.1]
[1755333320276,3.0,187.97,187.96,2.97]
[1755333320778,3.0,187.97,187.95,1.82619722]
[1755333321279,3.0,187.97,187.95,4.79619722]
[1755333322580,4.42188364,187.99,187.96,2.97]
[1755333322780,3.0,187.98,187.96,2.97]
[1755333323082,3.0,187.99,187.95,2.97]
[1755333324780,3.0,187.99,187.94,2.85137149]
[1755333324982,3.0,187.99,187.96,2.97]
[1755333325781,3.0,187.99,187.93,2.97]
[1755333325981,4.42188364,187.97,187.92,2.97]
[1755333326188,3.0,187.96,187.89,2.97]
[1755333331587,4.42188364,187.96,187.89,2.97]
[1755333331787,3.0,187.95,187.89,2.97]
[1755333332088,3.0,187.93,187.89,2.97]
[1755333332289,7.29743658,187.92,187.89,2.97]
[1755333332490,3.0,187.92,187.89,2.97]
[1755333332682,3.0,187.9,187.88,2.85137149]
[1755333332887,7.42188364,187.94,187.87,2.97]
[1755333333088,3.0,187.92,187.87,2.97]
[1755333333291,3.0,187.9,187.87,2.97]
[1755333333489,7.2971146,187.89,187.87,2.97]
[1755333333789,3.0,187.91,187.87,2.97]
[1755333333986,4.2961588,187.9,187.87,2.97]
[1755333334184,4.42188364,187.94,187.87,2.97]
[1755333334390,3.0,187.9,187.87,2.97]
[1755333335191,3.0,187.91,187.87,2.97]
[1755333335591,4.29626656,187.9,187.87,2.97]
[1755333335895,3.0,187.91,187.87,2.97]
[1755333336094,7.29626656,187.9,187.87,2.97]
[1755333336286,3.0,187.9,187.87,2.97]
[1755333338896,3.0,187.93,187.87,2.97]
[1755333339189,3.0,187.91,187.87,2.97]
[1755333339394,3.0,187.89,187.86,2.85137149]
[1755333339598,3.0,187.89,187.86,5.82137149]
[1755333340892,3.0,187.89,187.86,2.85137149]
[1755333341099,3.0,187.89,187.87,2.97]
[1755333341494,3.0,187.87,187.86,5.82137149]
[1755333341894,3.0,187.87,187.86,2.85137149]
[1755333342096,3.0,187.87,187.86,2.97]
[1755333342302,3.0,187.86,187.84,5.82137149]
[1755333342999,3.0,187.86,187.85,2.97]
[1755333346598,3.0,187.86,187.85,4.7969623]
[1755333351107,3.0,187.86,187.85,1.8269623]
[1755333351307,3.0,187.86,187.83,4.7269623]
[1755333351607,3.0,187.86,187.83,1.8269623]
[1755333351805,3.0,187.86,187.84,2.9]
[1755333352306,2.82,187.9,187.83,1.8269623]
[1755333352507,2.82,187.88,187.83,4.7269623]
[1755333352700,2.82,187.86,187.83,4.7269623]
[1755333353805,5.89166458,187.94,187.83,4.7269623]
[1755333353806,2.82,187.89,187.83,1.8269623]
[1755333354007,2.82,187.87,187.83,1.8269623]
[1755333354209,2.82,187.85,187.83,1.8269623]
[1755333354707,2.82,187.85,187.82,2.9]
[1755333355907,2.82,187.85,187.81,4.7269623]
[1755333356408,2.82,187.85,187.82,2.9]
[1755333357111,2.82,187.85,187.83,1.8269623]
[1755333357410,2.82,187.85,187.84,2.9]
[1755333357607,2.82,187.85,187.83,4.7269623]
[1755333357808,2.82,187.85,187.83,1.8269623]
[1755333358006,2.82,187.85,187.83,4.7269623]
[1755333358510,2.82,187.85,187.84,2.9]